[Event "XII Figueira da Foz Open 2018"]
[Site "Figueira da Foz"]
[Date "2018.10.30"]
[Round "2"]
[White "Puglia, Francesco"]
[Black "Ferreira, Cristina"]
[Result "1-0"]
[ECO "C25"]
[WhiteElo "1803"]
[BlackElo "1069"]
[Annotator "NA"]
[PlyCount "51"]
[EventDate "2018.10.30"]
[EventType "swiss"]
[EventCountry "POR"]
[SourceTitle "playchess.com"]
[Source "ChessBase"]
[SourceQuality "1"]
[TimeControl "40/5400+30:1800+30"]

1. e4 {[%emt 0:00:52]} e5 {[%emt 0:00:00]} 2. Nc3 {[%emt 0:00:06]} Nc6 {[%emt 0:00:35]} 3. f4 {[%emt 0:00:01]} f6 {[%emt 0:02:16]} 4. Nf3 {[%emt 0:00:20]} Be7 {[%emt 0:02:39]} 5. Bc4 {[%emt 0:01:07]} Nh6 {[%emt 0:02:55]} 6. O-O {[%emt 0:00:26]} Na5 {[%emt 0:02:30]} 7. Nxe5 {[%emt 0:13:00]} Nxc4 {[%emt 0:06:07]} 8. Nxc4 {[%emt 0:01:23]} d6 {[%emt 0:03:39]} 9. d4 {[%emt 0:04:27]} Be6 {[%emt 0:04:22]} 10. d5 {[%emt 0:01:22]} Bg4 {[%emt 0:01:32]} 11. Qe1 {[%emt 0:00:41]} O-O {[%emt 0:01:10]} 12. f5 {[%emt 0:06:02]} Qd7 {[%emt 0:06:25]} 13. Bxh6 {[%emt 0:02:54]} Rf7 {[%emt 0:04:36]} 14. Bd2 {[%emt 0:01:34]} c6 {[%emt 0:00:47]} 15. Qh4 {[%emt 0:00:33]} g5 {[%emt 0:06:07]} 16. Qxg4 {[%emt 0:00:45]} Rg7 {[%emt 0:03:37]} 17. Rad1 {[%emt 0:01:44]} b5 {[%emt 0:01:13]} 18. dxc6 {[%emt 0:00:45]} Qxc6 {[%emt 0:01:27]} 19. Ne3 {[%emt 0:00:09]} Bd8 {[%emt 0:03:51]} 20. Ncd5 {[%emt 0:00:09]} a6 {[%emt 0:06:02]} 21. Bc3 {[%emt 0:00:27]} Kh8 {[%emt 0:05:45]} 22. Nxf6 {[%emt 0:00:23]} Be7 {[%emt 0:03:52]} 23. Nh5 {[%emt 0:00:12]} b4 {[%emt 0:03:16]} 24. Bxg7+ {[%emt 0:00:08]} Kg8 {[%emt 0:02:10]} 25. f6 {[%emt 0:00:08]} Qc5 {[%emt 0:05:19]} 26. Qe6# {[%emt 0:00:08]} 1-0

[Event "XII Figueira da Foz Open 2018"]
[Site "Figueira da Foz"]
[Date "2018.10.30"]
[Round "2"]
[White "Marcal, Armando Paulo Gomes"]
[Black "Adams, Philip"]
[Result "0-1"]
[ECO "B32"]
[WhiteElo "1751"]
[BlackElo "1980"]
[Annotator "NA"]
[PlyCount "52"]
[EventDate "2018.10.30"]
[EventType "swiss"]
[EventCountry "POR"]
[SourceTitle "playchess.com"]
[Source "ChessBase"]
[SourceQuality "1"]
[TimeControl "40/5400+30:1800+30"]

1. e4 {[%emt 0:09:20]} c5 {[%emt 0:00:00]} 2. Nf3 {[%emt 0:00:19]} Nc6 {[%emt 0:00:00]} 3. d4 {[%emt 0:01:23]} cxd4 {[%emt 0:00:02]} 4. Nxd4 {[%emt 0:01:04]} g6 {[%emt 0:00:54]} 5. c3 {[%emt 0:02:14]} Bg7 {[%emt 0:00:23]} 6. Be3 {[%emt 0:00:34]} Nf6 {[%emt 0:00:44]} 7. Nd2 {[%emt 0:01:14]} O-O {[%emt 0:00:27]} 8. Be2 {[%emt 0:01:07]} Qc7 {[%emt 0:10:45]} 9. O-O {[%emt 0:04:46]} d5 {[%emt 0:04:18]} 10. exd5 {[%emt 0:09:28]} Nxd5 {[%emt 0:00:32]} 11. Nb5 {[%emt 0:01:27]} Qd8 {[%emt 0:09:43]} 12. Bc5 {[%emt 0:14:12]} b6 {[%emt 0:08:30]} 13. Ba3 {[%emt 0:02:41]} a6 {[%emt 0:02:54]} 14. Nd4 {[%emt 0:03:43]} Nxd4 {[%emt 0:00:24]} 15. cxd4 {[%emt 0:00:25]} Bxd4 {[%emt 0:08:40]} 16. Bf3 {[%emt 0:05:51]} Bb7 {[%emt 0:15:08]} 17. Qb3 {[%emt 0:09:16]} Rb8 {[%emt 0:12:27]} 18. Rad1 {[%emt 0:02:50]} Re8 {[%emt 0:08:16]} 19. Ne4 {[%emt 0:05:24]} Bg7 {[%emt 0:06:02]} 20. Nc3 {[%emt 0:00:32]} e6 {[%emt 0:00:29]} 21. Nxd5 {[%emt 0:05:04]} exd5 {[%emt 0:00:15]} 22. Bxd5 {[%emt 0:01:54]} Bxd5 {[%emt 0:01:17]} 23. Rxd5 {[%emt 0:00:11]} Qf6 {[%emt 0:04:36]} 24. Qg3 {[%emt 0:12:01]} Rbd8 {[%emt 0:01:46]} 25. Rxd8 {[%emt 0:02:41]} Qxd8 {[%emt 0:00:16]} 26. Qb3 {[%emt 0:02:38]} b5 {[%emt 0:01:06]} 0-1

[Event "XII Figueira da Foz Open 2018"]
[Site "Figueira da Foz"]
[Date "2018.10.30"]
[Round "2"]
[White "Soares, Sara Joana De Moura"]
[Black "Fernandes, Miguel A. Murtinho"]
[Result "0-1"]
[ECO "B01"]
[WhiteElo "1481"]
[BlackElo "2048"]
[Annotator "NA"]
[PlyCount "66"]
[EventDate "2018.10.30"]
[EventType "swiss"]
[EventCountry "POR"]
[SourceTitle "playchess.com"]
[Source "ChessBase"]
[SourceQuality "1"]
[TimeControl "40/5400+30:1800+30"]

1. e4 {[%emt 0:00:00]} d5 {[%emt 0:00:00]} 2. exd5 {[%emt 0:00:00]} Qxd5 {[%emt 0:00:00]} 3. Nc3 {[%emt 0:00:31]} Qd6 {[%emt 0:00:03]} 4. Nf3 {[%emt 0:00:33]} Nf6 {[%emt 0:00:09]} 5. Bc4 {[%emt 0:01:10]} g6 {[%emt 0:00:41]} 6. O-O {[%emt 0:01:39]} Bg7 {[%emt 0:00:07]} 7. Re1 {[%emt 0:01:53]} O-O {[%emt 0:00:16]} 8. d3 {[%emt 0:01:01]} a6 {[%emt 0:01:01]} 9. a4 {[%emt 0:04:59]} b6 {[%emt 0:00:56]} 10. Bg5 {[%emt 0:07:23]} Bb7 {[%emt 0:02:59]} 11. Bxf6 {[%emt 0:06:37]} exf6 {[%emt 0:04:30]} 12. Qe2 {[%emt 0:12:58]} f5 {[%emt 0:05:13]} 13. Qe7 {[%emt 0:08:15]} Bxf3 {[%emt 0:01:36]} 14. Qxd6 {[%emt 0:07:35]} cxd6 {[%emt 0:00:08]} 15. gxf3 {[%emt 0:00:14]} Nc6 {[%emt 0:01:09]} 16. Kg2 {[%emt 0:06:17]} Nd4 {[%emt 0:03:44]} 17. Bb3 {[%emt 0:04:29]} Rfe8 {[%emt 0:03:10]} 18. Rac1 {[%emt 0:10:03]} Nxb3 19. cxb3 Bd4 {[%emt 0:09:17]} 20. Kf1 {[%emt 0:08:15]} Rxe1+ {[%emt 0:00:41]} 21. Rxe1 {[%emt 0:01:52]} Rc8 {[%emt 0:00:55]} 22. Nd5 {[%emt 0:01:47]} Rc5 {[%emt 0:01:11]} 23. Ne7+ {[%emt 0:01:45]} Kf8 {[%emt 0:00:52]} 24. Re2 {[%emt 0:00:17]} Bf6 {[%emt 0:01:36]} 25. b4 {[%emt 0:01:49]} Rc1+ {[%emt 0:00:07]} 26. Re1 {[%emt 0:00:20]} Rxe1+ {[%emt 0:00:06]} 27. Kxe1 {[%emt 0:00:01]} Kxe7 {[%emt 0:00:08]} 28. b3 {[%emt 0:00:38]} Bc3+ {[%emt 0:00:06]} 29. Ke2 {[%emt 0:00:12]} Bxb4 {[%emt 0:00:07]} 30. d4 {[%emt 0:00:26]} h5 {[%emt 0:00:05]} 31. f4 {[%emt 0:00:41]} d5 {[%emt 0:00:04]} 32. h4 {[%emt 0:00:31]} Ke6 {[%emt 0:00:07]} 33. Ke3 {[%emt 0:00:34]} Be7 {[%emt 0:00:05]} 0-1

[Event "XII Figueira da Foz Open 2018"]
[Site "Figueira da Foz"]
[Date "2018.10.30"]
[Round "2"]
[White "Dong, Fabio"]
[Black "Marques, Joao Paulo C Veloso"]
[Result "0-1"]
[ECO "E62"]
[WhiteElo "1273"]
[BlackElo "1807"]
[Annotator "NA"]
[PlyCount "52"]
[EventDate "2018.10.30"]
[EventType "swiss"]
[EventCountry "POR"]
[SourceTitle "playchess.com"]
[Source "ChessBase"]
[SourceQuality "1"]
[TimeControl "40/5400+30:1800+30"]

1. c4 {[%emt 0:00:00]} Nf6 {[%emt 0:00:00]} 2. Nc3 {[%emt 0:00:00]} g6 {[%emt 0:00:00]} 3. g3 {[%emt 0:00:09]} Bg7 {[%emt 0:00:08]} 4. Bg2 {[%emt 0:00:10]} O-O {[%emt 0:00:35]} 5. Nf3 {[%emt 0:00:22]} d6 {[%emt 0:01:51]} 6. d4 {[%emt 0:00:38]} c6 {[%emt 0:00:08]} 7. O-O {[%emt 0:00:32]} Bf5 {[%emt 0:00:43]} 8. Re1 {[%emt 0:04:33]} Ne4 {[%emt 0:00:49]} 9. Bd2 {[%emt 0:12:29]} Qb6 {[%emt 0:03:43]} 10. Qb3 {[%emt 0:14:00]} Qxb3 {[%emt 0:03:41]} 11. axb3 {[%emt 0:00:28]} Nxd2 {[%emt 0:00:20]} 12. Nxd2 {[%emt 0:00:14]} Bxd4 {[%emt 0:00:41]} 13. Ra4 {[%emt 0:03:21]} Nd7 {[%emt 0:05:40]} 14. Rea1 {[%emt 0:00:33]} a6 {[%emt 0:04:45]} 15. Rb4 {[%emt 0:03:24]} Rab8 {[%emt 0:01:52]} 16. e3 {[%emt 0:05:05]} Bg7 {[%emt 0:03:06]} 17. Rba4 {[%emt 0:02:46]} Nc5 {[%emt 0:02:06]} 18. R4a2 {[%emt 0:03:07]} Nd3 {[%emt 0:04:17]} 19. e4 {[%emt 0:00:50]} Be6 {[%emt 0:02:06]} 20. Kf1 {[%emt 0:07:14]} Nxb2 {[%emt 0:04:58]} 21. Rc1 {[%emt 0:06:44]} Nd3 {[%emt 0:00:47]} 22. Rcc2 {[%emt 0:00:32]} Nb4 {[%emt 0:00:15]} 23. Rab2 {[%emt 0:00:35]} Nxc2 {[%emt 0:01:19]} 24. Rxc2 {[%emt 0:00:11]} Rfc8 {[%emt 0:02:20]} 25. Ne2 {[%emt 0:04:54]} b5 {[%emt 0:08:40]} 26. cxb5 {[%emt 0:00:29]} Rxb5 {[%emt 0:06:02]} 0-1

[Event "XII Figueira da Foz Open 2018"]
[Site "Figueira da Foz"]
[Date "2018.10.30"]
[Round "3"]
[White "Lisowski, Krzysztof"]
[Black "Pais, Bruno Miguel Dos Sa"]
[Result "1-0"]
[ECO "B40"]
[WhiteElo "2095"]
[BlackElo "1836"]
[Annotator "NA RC"]
[PlyCount "39"]
[EventDate "2018.10.30"]
[EventType "swiss"]
[EventCountry "POR"]
[SourceTitle "playchess.com"]
[Source "ChessBase"]
[SourceQuality "1"]
[TimeControl "40/5400+30:1800+30"]

{[%evp 11,36,-12,32767,32767,32767,32767,68,68,95,93,87,84,79,86,171,32767,32767,32767,32767,32767,32767,32767,482,32767,32767,1135,1271]} 1. e4 {[%emt 0:00:00]} c5 {[%emt 0:00:00]} 2. Nf3 {[%emt 0:00:00]} e6 {[%emt 0:00:00]} 3. b3 {[%emt 0:00:00]} b6 {[%emt 0:00:00]} 4. Bb2 {[%emt 0:02:10]} Bb7 {[%emt 0:00:07]} 5. Nc3 {[%emt 0:02:12]} a6 {[%emt 0:00:06]} 6. Qe2 {[%emt 0:03:53] B40: Sicilian: 2...e6, Unusual lines} (6. d4 cxd4 7. Nxd4 Qc7 8. Qd2 Nf6 9. f3 Nc6 10. Nxc6 dxc6 11. O-O-O Be7 12. Bd3 b5 13. e5 Nd7 14. Ne4 Nxe5 15. Qc3 {1-0 (35) So,W (2780)-Vallejo Pons,F (2707) Leon 2018}) 6... d6 {[%emt 0:03:26]} 7. d4 {[%emt 0:05:18]} cxd4 {[%emt 0:02:01]} 8. Nxd4 {[%emt 0:00:20]} Qc7 {[%emt 0:00:55]} 9. O-O-O {[%emt 0:13:52]} Nf6 {[%emt 0:02:44]} 10. g4 {[%emt 0:04:06] LiveBook: 7 Games} Nc6 {[%emt 0:17:27]} 11. Nxc6 {[%emt 0:17:23]} Qxc6 {[%emt 0:00:07]} 12. Nd5 {[%emt 0:05:44]} e5 $146 {[%emt 0:06:05]} ({Predecessor:} 12... Nd7 13. Bg2 O-O-O 14. Ne3 Qc7 15. g5 Kb8 16. h4 {½-½ (16) Fogarasi,T (2407)-Bokros,A (2458) Hungary 2012}) 13. g5 {[%emt 0:11:54]} Nxd5 {[%emt 0:01:58]} 14. exd5 {[%emt 0:00:08]} Qc5 {[%emt 0:02:02]} 15. f4 {[%emt 0:03:27]} Bxd5 {[%emt 0:12:50]} 16. Rxd5 {[%emt 0:00:18]} Qxd5 {[%emt 0:00:55]} 17. Bg2 {[%emt 0:00:11]} e4 {[%emt 0:00:13]} 18. Bxe4 {[%emt 0:00:09]} Qe6 $18 {[%emt 0:02:25]} 19. f5 {[%emt 0:03:47]} Qe7 {[%emt 0:00:58]} 20. f6 {[%emt 0:00:34]} 1-0

[Event "XII Figueira da Foz Open 2018"]
[Site "Figueira da Foz"]
[Date "2018.10.30"]
[Round "3"]
[White "Pipiras, Filipa Fortuna"]
[Black "Fernandes, Ricardo Paulos"]
[Result "0-1"]
[ECO "E61"]
[WhiteElo "1853"]
[BlackElo "2098"]
[Annotator "NA RC"]
[PlyCount "68"]
[EventDate "2018.10.30"]
[EventType "swiss"]
[EventCountry "POR"]
[SourceTitle "playchess.com"]
[Source "ChessBase"]
[SourceQuality "1"]
[TimeControl "40/5400+30:1800+30"]

{[%evp 18,67,82,32767,32767,32767,32767,87,32767,92,89,83,117,32767,32767,74,108,94,32767,32767,32767,32767,32767,32767,32767,32767,111,46,31,29,40,29,29,0,94,88,85,85,32767,32767,153,153,215,32767,32767,32767,-5722,-29990,-29991,-29993,-29994,-29999]} 1. d4 {[%emt 0:04:35]} Nf6 {[%emt 0:00:00]} 2. c4 {[%emt 0:00:23]} g6 {[%emt 0:00:00]} 3. Nc3 {[%emt 0:00:23]} Bg7 {[%emt 0:00:00]} 4. Nf3 {[%emt 0:00:30]} O-O {[%emt 0:00:00]} 5. Bg5 {[%emt 0:00:37]} c5 {[%emt 0:00:00]} 6. d5 {[%emt 0:00:28]} b5 {[%emt 0:00:00]} 7. cxb5 {[%emt 0:06:45]} d6 {[%emt 0:01:27]} 8. e4 {[%emt 0:00:52]} a6 {[%emt 0:00:36]} 9. bxa6 {[%emt 0:05:16]} Bxa6 {[%emt 0:00:22]} 10. Bxa6 {[%emt 0:00:40]} Nxa6 {[%emt 0:00:07]} 11. O-O {[%emt 0:00:21]} h6 {[%emt 0:02:58] E91: King's Indian: Classical: 6 Be2, unusual replies including 6...c5 and 6...Bg4} 12. Be3 $146 {[%emt 0:02:32]} ({Predecessor:} 12. Bf4 Qb6 13. Rb1 Nd7 14. Qd2 Kh7 15. Rfe1 c4 16. Be3 Nac5 17. Bd4 Bxd4 18. Qxd4 Nd3 19. Qxb6 Nxb6 20. Red1 {½-½ (39) Van de Plassche,E (2199)-Kivipelto,K (2146) Finland 2018}) 12... Qb6 {[%emt 0:03:45]} 13. Rb1 {[%emt 0:01:41]} Rfb8 {[%emt 0:06:44]} 14. Nd2 {[%emt 0:04:47]} Qa5 {[%emt 0:15:24]} 15. Nc4 {[%emt 0:06:58]} Qb4 {[%emt 0:00:53]} 16. Qe2 {[%emt 0:01:58]} Nc7 {[%emt 0:10:21]} 17. a3 {[%emt 0:05:51]} Qb3 {[%emt 0:03:33]} 18. Nd2 {[%emt 0:03:22]} Qb7 {[%emt 0:00:28]} 19. b4 {[%emt 0:10:47]} Qc8 {[%emt 0:09:53]} 20. bxc5 {[%emt 0:01:39]} dxc5 {[%emt 0:00:01]} 21. Qc4 {[%emt 0:09:09]} Nd7 {[%emt 0:02:50]} 22. Nb5 {[%emt 0:02:32]} ({Much weaker is} 22. Bxc5 $6 Na6 $15) 22... Nxb5 {[%emt 0:01:26]} 23. Rxb5 {[%emt 0:00:25]} Rxa3 {[%emt 0:00:10]} 24. Rc1 {[%emt 0:04:24]} ({Wrong is} 24. Bxc5 $2 Rc3 $19) 24... Rba8 {[%emt 0:23:16]} 25. g3 {[%emt 0:06:07]} Ra1 {[%emt 0:04:12] [#]} (25... R8a4 $11 26. Qf1 Ra1) 26. Rxa1 $1 {[%emt 0:00:31]} ({But not} 26. Bxc5 $2 Ne5 $19) 26... Rxa1+ {[%emt 0:00:18]} 27. Kg2 {[%emt 0:00:07]} Ra3 {[%emt 0:01:12]} 28. Nb3 {[%emt 0:01:08]} Ne5 {[%emt 0:10:03]} (28... g5 $142) 29. Qxc5 {[%emt 0:00:51]} Qg4 {[%emt 0:00:08]} (29... Qa6 $16) 30. Qxa3 {[%emt 0:09:02]} Qxe4+ {[%emt 0:00:06]} 31. Kh3 {[%emt 0:01:14] [#]} g5 $1 {[%emt 0:00:54]} 32. f3 {[%emt 0:05:37]} Qxf3 {[%emt 0:00:02]} 33. Qa8+ {[%emt 0:00:18]} Kh7 {[%emt 0:00:22]} 34. Qc8 {[%emt 0:00:29]} Qf1# {[%emt 0:00:06]} 0-1

[Event "XII Figueira da Foz Open 2018"]
[Site "Figueira da Foz"]
[Date "2018.10.30"]
[Round "3"]
[White "Marques, Joao Paulo C Veloso"]
[Black "Guerreiro, Nuno"]
[Result "1-0"]
[ECO "A20"]
[WhiteElo "1807"]
[BlackElo "2069"]
[Annotator "NA RC"]
[PlyCount "111"]
[EventDate "2018.10.30"]
[EventType "swiss"]
[EventCountry "POR"]
[SourceTitle "playchess.com"]
[Source "ChessBase"]
[SourceQuality "1"]
[TimeControl "40/5400+30:1800+30"]

{[%evp 12,106,24,17,10,32767,32767,32767,9,7,10,15,25,8,32767,32767,27,-4,6,11,19,-2,17,0,0,-19,-10,-16,-4,-8,0,-21,-24,32767,32767,32767,32767,-28,0,32767,32767,32767,6,0,0,0,0,0,0,0,0,0,0,-8,0,0,29,0,32767,32767,32767,32767,352,325,360,361,349,596,636,1395,1106,1318,1390,32767,32767,32767,32767,32767,5110,6094,5065,11286,1682,12229,12843,29979,29979,12846,29978,29982,29982,32767,32767,32767,32767,12848,29986]} 1. c4 e5 2. g3 Nf6 3. Bg2 Nc6 4. Nc3 Bc5 5. Nf3 d6 6. O-O a6 {LiveBook: 136 Games} 7. d3 O-O 8. a3 h6 9. Bd2 {A29: English Opening: Four Knights Variation with 4 g3} (9. b4 Ba7 10. Bb2 Re8 11. e3 Ne7 12. Nd2 Rb8 13. Nde4 Ng6 14. Rc1 c6 15. c5 Nxe4 16. Nxe4 d5 17. Nd6 Bd7 18. Nxe8 Qxe8 {0-1 (44) Grischuk,A (2754)-Carlsen,M (2857) chess.com INT 2016}) 9... Ne7 10. b4 Ba7 11. a4 $146 ({Predecessor:} 11. Rc1 Ng6 12. e3 c6 13. Ne4 Ne8 14. Bc3 Bg4 15. Qb3 Qd7 16. Ned2 Nc7 17. d4 exd4 18. Bxd4 Bxd4 19. Nxd4 {½-½ (46) Martin Hernandez,R (2128)-Valmana Canto,J (2338) Almansa 2011}) 11... Ng6 12. b5 Bc5 13. Qc2 Re8 14. Rab1 axb5 15. axb5 c6 16. e4 Be6 17. Ra1 Qd7 18. Ra4 Rxa4 19. Qxa4 Rd8 20. Ra1 Qc7 21. Qc2 d5 22. cxd5 cxd5 23. Rc1 Rc8 24. Qb2 Qd6 25. Nxd5 Nxd5 26. exd5 Bxd5 27. Be3 Rc7 28. Bxc5 Rxc5 29. h4 Rxc1+ 30. Qxc1 Ne7 31. Qc3 f6 32. Ne1 Bxg2 33. Nxg2 Kh7 34. Ne3 (34. Qc4 $5 {[%cal Rc4e4]}) 34... Qb6 35. Qc4 Qd6 36. Qe4+ f5 37. Nxf5 Nxf5 38. Qxf5+ Qg6 39. Qxg6+ Kxg6 40. Kg2 Kf5 41. Kf3 h5 42. b6 Ke6 43. Ke4 Kd6 44. f3 Kc6 45. Kxe5 Kxb6 46. d4 Kc7 47. Kd5 Kd7 48. g4 g6 49. gxh5 gxh5 50. f4 Ke7 51. Kc5 Ke6 52. d5+ Kd7 53. f5 $18 Ke7 54. Kb6 Kd6 55. f6 Kxd5 56. f7 1-0

[Event "XII Figueira da Foz Open 2018"]
[Site "Figueira da Foz"]
[Date "2018.10.30"]
[Round "3"]
[White "Morais, Mario Martins Freit"]
[Black "Puglia, Francesco"]
[Result "0-1"]
[ECO "A45"]
[WhiteElo "1766"]
[BlackElo "1803"]
[Annotator "NA RC"]
[PlyCount "62"]
[EventDate "2018.10.30"]
[EventType "swiss"]
[EventCountry "POR"]
[SourceTitle "playchess.com"]
[Source "ChessBase"]
[SourceQuality "1"]
[TimeControl "40/5400+30:1800+30"]

{[%evp 13,62,-15,-2,-31,-15,32767,-7,-20,32767,32767,32767,32767,32767,-347,-335,-335,-262,-240,-237,-288,-279,-372,-356,32767,32767,32767,-373,-377,-383,-459,-456,-457,-370,-371,-333,-476,32767,32767,32767,32767,32767,32767,-985,32767,-970,-1261,-1505,-1732,-5062,-29979,-29987]} 1. d4 {[%emt 0:00:00]} Nf6 {[%emt 0:04:04]} 2. Bf4 {[%emt 0:00:00]} g6 {[%emt 0:00:17]} 3. e3 {[%emt 0:00:22]} Bg7 {[%emt 0:00:01]} 4. Nd2 {[%emt 0:01:42]} d6 {[%emt 0:02:10]} 5. Bd3 {[%emt 0:00:28]} Nbd7 {[%emt 0:01:00]} 6. Ngf3 {[%emt 0:00:31]} O-O {[%emt 0:05:17]} 7. a4 $146 {[%emt 0:26:41] A48: Königsindisch (ohne c2-c4)} ({Vorgänger:} 7. O-O Re8 8. c3 e5 9. Bg5 h6 10. Bxf6 Nxf6 11. Qc2 Qe7 12. e4 c6 13. a4 a5 14. Rfe1 Nh5 15. g3 {0-1 (43) Duda,L (2201)-Stoma,P (2317) Pokrzywna 2018}) 7... c5 {[%emt 0:08:52]} 8. c3 {[%emt 0:00:30]} e5 {[%emt 0:01:51]} 9. Bg5 {[%emt 0:14:36]} h6 {[%emt 0:05:45]} 10. Bh4 {[%emt 0:01:42]} g5 {[%emt 0:15:08]} 11. Bg3 {[%emt 0:00:16]} Nh5 {[%emt 0:13:00]} 12. Ne4 {[%emt 0:20:21]} d5 {[%emt 0:15:33]} 13. Bc2 $2 {[%emt 0:18:30]} (13. Nexg5 $17 {was necessary.} hxg5 14. Nxe5) 13... dxe4 {[%emt 0:01:10]} 14. Nxe5 {[%emt 0:00:30]} Nxe5 {[%emt 0:01:02]} 15. Bxe5 {[%emt 0:00:43]} Bxe5 {[%emt 0:04:22]} 16. Qxh5 {[%emt 0:00:04]} Bg7 {[%emt 0:00:14]} 17. Bxe4 {[%emt 0:01:47]} cxd4 {[%emt 0:03:39]} 18. cxd4 {[%emt 0:01:24]} Qe7 {[%emt 0:00:56]} 19. Bf3 {[%emt 0:00:48]} Qb4+ {[%emt 0:02:31]} 20. Kf1 {[%emt 0:00:01]} Bf5 {[%emt 0:00:47]} 21. g4 {[%emt 0:00:17]} Bg6 {[%emt 0:01:03]} 22. Qh3 {[%emt 0:00:02]} Qxb2 {[%emt 0:01:22]} 23. Kg2 {[%emt 0:00:13]} f5 {[%emt 0:01:29]} 24. Bd5+ {[%emt 0:02:56]} Kh7 {[%emt 0:00:08]} 25. Ra2 {[%emt 0:00:15]} Qb6 {[%emt 0:04:08]} 26. gxf5 {[%emt 0:01:53]} Rxf5 {[%emt 0:00:58]} 27. e4 {[%emt 0:02:16] [#]} Rxd5 $1 {[%emt 0:00:12]} 28. exd5 {[%emt 0:00:37]} Qxd4 {[%emt 0:02:11]} 29. Re2 {[%emt 0:02:11]} g4 {[%emt 0:02:10]} 30. Qe3 {[%emt 0:00:57]} Qxd5+ {[%emt 0:00:16]} 31. Kg3 {[%emt 0:00:08]} Qxh1 {[%emt 0:00:26]} 0-1

[Event "XII Figueira da Foz Open 2018"]
[Site "Figueira da Foz"]
[Date "2018.10.30"]
[Round "3"]
[White "Dias, Jose Oliveira Gaspa"]
[Black "Correia, Pedro Mourao Soares"]
[Result "1-0"]
[ECO "A05"]
[WhiteElo "1605"]
[BlackElo "1518"]
[Annotator "NA RC"]
[PlyCount "103"]
[EventDate "2018.10.30"]
[EventType "swiss"]
[EventCountry "POR"]
[SourceTitle "playchess.com"]
[Source "ChessBase"]
[SourceQuality "1"]
[TimeControl "40/5400+30:1800+30"]

1. Nf3 {[%emt 0:00:00]} Nf6 {[%emt 0:01:21]} 2. g3 {[%emt 0:00:32]} c6 {[%emt 0:03:25]} 3. Bg2 {[%emt 0:00:08]} d5 {[%emt 0:00:25]} 4. O-O {[%emt 0:00:07]} Bf5 {[%emt 0:00:35]} 5. d3 {[%emt 0:00:24]} Nbd7 {[%emt 0:04:09]} 6. Nbd2 {[%emt 0:00:52]} e5 {[%emt 0:02:10]} 7. Qe1 {[%emt 0:03:07]} Bd6 {[%emt 0:03:28]} 8. e4 {[%emt 0:00:17]} Be6 {[%emt 0:04:00]} 9. Ng5 {[%emt 0:05:35]} Bg4 {[%emt 0:04:56]} 10. exd5 {[%emt 0:05:18]} cxd5 {[%emt 0:01:54]} 11. c4 {[%emt 0:00:33]} h6 {[%emt 0:04:40]} 12. Ngf3 {[%emt 0:03:39]} O-O {[%emt 0:02:53]} 13. cxd5 {[%emt 0:03:21]} Bb4 {[%emt 0:10:00]} 14. a3 {[%emt 0:04:51]} Ba5 {[%emt 0:02:15]} 15. b4 {[%emt 0:02:40]} Bb6 {[%emt 0:01:11]} 16. h3 {[%emt 0:01:11]} Bf5 {[%emt 0:00:57]} 17. Ne4 {[%emt 0:01:37]} Nxd5 {[%emt 0:03:12]} 18. Bb2 {[%emt 0:00:35]} Qe7 {[%emt 0:04:14]} 19. Rc1 {[%emt 0:05:18]} a5 {[%emt 0:04:31]} 20. b5 {[%emt 0:06:37]} f6 {[%emt 0:01:44]} 21. Nfd2 {[%emt 0:08:02]} Qe6 {[%emt 0:04:18]} 22. Kh2 Qe7 {[%emt 0:06:51]} 23. Qe2 {[%emt 0:14:23]} Be6 {[%emt 0:00:59]} 24. Nc4 {[%emt 0:03:37]} Bc5 {[%emt 0:04:34]} 25. a4 {[%emt 0:04:37]} Bb4 {[%emt 0:01:22]} 26. Rc2 {[%emt 0:09:44]} N7b6 {[%emt 0:00:25]} 27. Ra1 {[%emt 0:02:50]} Rfd8 {[%emt 0:03:03]} 28. Nxb6 Nxb6 29. Qe3 {[%emt 0:02:09]} Nd5 {[%emt 0:03:09]} 30. Qe2 {[%emt 0:00:56]} Nb6 {[%emt 0:03:39]} 31. Nd2 {[%emt 0:02:50]} Bxd2 {[%emt 0:00:55]} 32. Qxd2 {[%emt 0:01:05]} Bb3 {[%emt 0:02:57]} 33. Ba3 {[%emt 0:00:16]} Qd7 {[%emt 0:01:27]} 34. Rc3 {[%emt 0:00:33]} Bxa4 {[%emt 0:03:54]} 35. Bc5 {[%emt 0:00:45]} Qxb5 {[%emt 0:01:09]} 36. Bxb6 {[%emt 0:00:32]} Qxb6 {[%emt 0:03:10]} 37. Rxa4 {[%emt 0:00:10]} Rd7 {[%emt 0:01:32]} 38. Qa2+ {[%emt 0:03:59]} Kh8 {[%emt 0:00:30]} 39. Be4 {[%emt 0:03:01]} Qa7 {[%emt 0:02:44]} 40. Rac4 {[%emt 0:00:00]} Rad8 {[%emt 0:00:00]} 41. Rc8 {[%emt 0:02:23]} b5 {[%emt 0:05:02]} 42. Kg2 {[%emt 0:00:28]} Rd6 {[%emt 0:02:32]} 43. R8c7 {[%emt 0:01:15]} Qd4 {[%emt 0:01:25]} 44. Qf7 {[%emt 0:02:12]} R6d7 {[%emt 0:00:52]} 45. Qg6 {[%emt 0:01:17]} f5 {[%emt 0:03:12]} 46. Bxf5 {[%emt 0:00:07]} Qd5+ {[%emt 0:05:14]} 47. Kh2 {[%emt 0:01:49]} Qg8 {[%emt 0:02:30]} 48. Rxd7 {[%emt 0:00:22]} Rf8 {[%emt 0:02:07]} 49. Rcc7 {[%emt 0:00:55]} Rf6 {[%emt 0:01:19]} 50. Qg4 {[%emt 0:01:02]} h5 {[%emt 0:01:29]} 51. Qxh5+ {[%emt 0:00:40]} Rh6 {[%emt 0:00:11]} 52. Qxh6+ {[%emt 0:01:25]} 1-0